[Event "Early-Titled-Tuesday-Blitz-June-18-2024"]
[Site "Chess.com"]
[Date "2024.06.18"]
[Round "1"]
[White "Yaacovn"]
[Black "Savagelittlemole"]
[Result "1-0"]
[WhiteElo "2860"]
[BlackElo "2489"]
[TimeControl "180+1"]
[EndTime "8:07:10 PDT"]
[Termination "Yaacovn won on time"]

1. d4 {[%clk 0:02:56]} 1... c5 {[%clk 0:02:59.5]} 2. c3 {[%clk 0:02:55.9]} 2...
g6 {[%clk 0:02:59.2]} 3. Nf3 {[%clk 0:02:55.7]} 3... Bg7 {[%clk 0:02:59.6]} 4.
Bf4 {[%clk 0:02:55.3]} 4... Nf6 {[%clk 0:02:59.5]} 5. Nbd2 {[%clk 0:02:54.6]}
5... O-O {[%clk 0:02:59.6]} 6. dxc5 {[%clk 0:02:54.2]} 6... Na6 {[%clk
0:02:58.5]} 7. Nb3 {[%clk 0:02:54.1]} 7... Nh5 {[%clk 0:02:49.2]} 8. Be3 {[%clk
0:02:52.9]} 8... e5 {[%clk 0:02:45.9]} 9. Qd6 {[%clk 0:02:47.6]} 9... Re8 {[%clk
0:02:15.8]} 10. O-O-O {[%clk 0:02:38]} 10... Bf8 {[%clk 0:02:15.8]} 11. Qd2
{[%clk 0:02:35.5]} 11... Qc7 {[%clk 0:02:10.3]} 12. Ng5 {[%clk 0:02:32.1]} 12...
Nf6 {[%clk 0:01:45.3]} 13. f3 {[%clk 0:02:21.6]} 13... Nxc5 {[%clk 0:01:42.6]}
14. Nxc5 {[%clk 0:02:20.1]} 14... Bxc5 {[%clk 0:01:43.5]} 15. Bxc5 {[%clk
0:02:20.2]} 15... Qxc5 {[%clk 0:01:43.2]} 16. e4 {[%clk 0:02:16.9]} 16... Qa5
{[%clk 0:01:30.9]} 17. Bc4 {[%clk 0:02:14.9]} 17... d5 {[%clk 0:01:25.7]} 18.
Bxd5 {[%clk 0:02:12.8]} 18... Nxd5 {[%clk 0:01:14.5]} 19. Qxd5 {[%clk 0:02:11]}
19... Qxd5 {[%clk 0:01:14.9]} 20. exd5 {[%clk 0:02:08.9]} 20... h6 {[%clk
0:01:15.5]} 21. Ne4 {[%clk 0:02:08.8]} 21... Kg7 {[%clk 0:01:12.8]} 22. d6
{[%clk 0:02:08.7]} 22... Bf5 {[%clk 0:01:10.9]} 23. d7 {[%clk 0:02:04.6]} 23...
Red8 {[%clk 0:01:08.4]} 24. Nd6 {[%clk 0:02:04.6]} 24... Kf6 {[%clk 0:00:52.2]}
25. g4 {[%clk 0:01:56.4]} 25... Be6 {[%clk 0:00:45.2]} 26. Nxb7 {[%clk
0:01:55.9]} 26... Rxd7 {[%clk 0:00:44]} 27. Rxd7 {[%clk 0:01:55]} 27... Bxd7
{[%clk 0:00:44.9]} 28. Nc5 {[%clk 0:01:55.4]} 28... Bc6 {[%clk 0:00:43.2]} 29.
Kd2 {[%clk 0:01:54.2]} 29... Ke7 {[%clk 0:00:31.7]} 30. Ke3 {[%clk 0:01:53.9]}
30... f5 {[%clk 0:00:31]} 31. gxf5 {[%clk 0:01:52.9]} 31... gxf5 {[%clk
0:00:31.9]} 32. Rg1 {[%clk 0:01:53.3]} 32... Kf6 {[%clk 0:00:31.4]} 33. h4
{[%clk 0:01:51.1]} 33... Rc8 {[%clk 0:00:23.6]} 34. h5 {[%clk 0:01:49.4]} 34...
Bxf3 {[%clk 0:00:21.6]} 35. Rg6+ {[%clk 0:01:48]} 35... Kf7 {[%clk 0:00:17.8]}
36. Nd7 {[%clk 0:01:47.9]} 36... Bxh5 {[%clk 0:00:15.9]} 37. Nxe5+ {[%clk
0:01:48.2]} 37... Ke7 {[%clk 0:00:15.8]} 38. Rxh6 {[%clk 0:01:48.7]} 38... Bg4
{[%clk 0:00:15.7]} 39. Kf4 {[%clk 0:01:44.9]} 39... Rg8 {[%clk 0:00:14.2]} 40.
Ra6 {[%clk 0:01:41.1]} 40... Bh3 {[%clk 0:00:05.1]} 41. Rxa7+ {[%clk 0:01:40.3]}
41... Kd6 {[%clk 0:00:05.7]} 42. Ra6+ {[%clk 0:01:35.5]} 42... Kd5 {[%clk
0:00:04.6]} 43. c4+ {[%clk 0:01:35.5]} 43... Kd4 {[%clk 0:00:03.9]} 44. Rd6+
{[%clk 0:01:35.4]} 44... Kc5 {[%clk 0:00:02.6]} 45. Rd5+ {[%clk 0:01:35.6]}
45... Kb4 {[%clk 0:00:02.2]} 46. Rb5+ {[%clk 0:01:34.4]} 46... Ka4 {[%clk
0:00:02.6]} 47. Rb3 {[%clk 0:01:30.2]} 47... Bf1 {[%clk 0:00:02.4]} 48. Nd7
{[%clk 0:01:25.2]} 48... Rg4+ {[%clk 0:00:01.9]} 49. Kxf5 {[%clk 0:01:24.9]}
49... Rxc4 {[%clk 0:00:01.2]} 50. Nb6+ {[%clk 0:01:25.1]} 50... Ka5 {[%clk
0:00:01.5]} 51. Nxc4+ {[%clk 0:01:25.7]} 51... Bxc4 {[%clk 0:00:02.1]} 52. Rc3
{[%clk 0:01:25.6]} 52... Kb4 {[%clk 0:00:01.9]} 53. a3+ {[%clk 0:01:25.2]} 53...
Kb5 {[%clk 0:00:02]} 54. Kf4 {[%clk 0:01:26.1]} 54... Bd5 {[%clk 0:00:01.9]} 55.
Ke3 {[%clk 0:01:27]} 55... Ka4 {[%clk 0:00:02.4]} 56. Kd4 {[%clk 0:01:27.7]}
56... Bb3 {[%clk 0:00:03]} 57. Kc5 {[%clk 0:01:27.1]} 57... Ba2 {[%clk 0:00:03]}
58. b4 {[%clk 0:01:26.7]} 58... Be6 {[%clk 0:00:02.2]} 59. b5 {[%clk 0:01:26.4]}
59... Ka5 {[%clk 0:00:02.1]} 60. b6 {[%clk 0:01:26]} 60... Ka6 {[%clk
0:00:02.5]} 61. Re3 {[%clk 0:01:26.5]} 61... Bc8 {[%clk 0:00:02.6]} 62. Re7
{[%clk 0:01:27.4]} 62... Bb7 {[%clk 0:00:03.1]} 63. Rg7 {[%clk 0:01:27.5]} 63...
Ka5 {[%clk 0:00:01]} 64. Rxb7 {[%clk 0:01:27.5]} 1-0

[Event "Early-Titled-Tuesday-Blitz-June-18-2024"]
[Site "Chess.com"]
[Date "2024.06.18"]
[Round "1"]
[White "Gyulamiryan-koryun"]
[Black "noblerone"]
[Result "1-0"]
[WhiteElo "1585"]
[BlackElo "2531"]
[TimeControl "180+1"]
[EndTime "8:07:10 PDT"]
[Termination "Gyulamiryan-koryun won on time"]

1. d4 {[%clk 0:02:23.5]} 1... d5 {[%clk 0:02:59.3]} 2. c4 {[%clk 0:02:15.6]}
2... e6 {[%clk 0:02:59]} 3. Nc3 {[%clk 0:02:15.8]} 3... Nf6 {[%clk 0:02:58.9]}
4. Nf3 {[%clk 0:02:16.1]} 4... a6 {[%clk 0:02:57.6]} 5. Bg5 {[%clk 0:02:13.6]}
5... dxc4 {[%clk 0:02:52.3]} 6. e4 {[%clk 0:02:13]} 6... b5 {[%clk 0:02:44.9]}
7. e5 {[%clk 0:02:12.1]} 7... h6 {[%clk 0:02:44]} 8. Bh4 {[%clk 0:01:53.9]} 8...
g5 {[%clk 0:02:42.8]} 9. Nxg5 {[%clk 0:01:52.8]} 9... hxg5 {[%clk 0:02:41.4]}
10. Bxg5 {[%clk 0:01:53]} 10... Nbd7 {[%clk 0:02:02.6]} 11. exf6 {[%clk
0:01:23.2]} 11... Bb7 {[%clk 0:01:36.6]} 12. d5 {[%clk 0:01:18.5]} 12... e5
{[%clk 0:01:14.4]} 13. Qf3 {[%clk 0:01:06.1]} 13... Nc5 {[%clk 0:01:03.4]} 14.
Be2 {[%clk 0:01:01.2]} 14... b4 {[%clk 0:00:50.7]} 15. Qe3 {[%clk 0:00:40.3]}
15... Bd6 {[%clk 0:00:36.2]} 16. Ne4 {[%clk 0:00:38.5]} 16... Nxe4 {[%clk
0:00:32.7]} 17. Qxe4 {[%clk 0:00:38.8]} 17... c3 {[%clk 0:00:31.4]} 18. bxc3
{[%clk 0:00:38]} 18... bxc3 {[%clk 0:00:31.7]} 19. Rb1 {[%clk 0:00:34.9]} 19...
Bc8 {[%clk 0:00:29.8]} 20. f4 {[%clk 0:00:32.8]} 20... c2 {[%clk 0:00:18.1]} 21.
Rc1 {[%clk 0:00:30]} 21... Rb8 {[%clk 0:00:15.5]} 22. fxe5 {[%clk 0:00:29.5]}
22... Bb4+ {[%clk 0:00:16.2]} 23. Kf2 {[%clk 0:00:28.1]} 23... Kf8 {[%clk
0:00:13.2]} 24. Rhf1 {[%clk 0:00:25.9]} 24... Bb7 {[%clk 0:00:11.4]} 25. Bf3
{[%clk 0:00:24.8]} 25... Bc5+ {[%clk 0:00:09.6]} 26. Be3 {[%clk 0:00:24.6]}
26... Bxe3+ {[%clk 0:00:09.4]} 27. Kxe3 {[%clk 0:00:24.9]} 27... Qd7 {[%clk
0:00:08.4]} 28. Rxc2 {[%clk 0:00:24.6]} 28... Qb5 {[%clk 0:00:07.1]} 29. Rd1
{[%clk 0:00:23.6]} 29... Rxh2 {[%clk 0:00:05.5]} 30. Rcd2 {[%clk 0:00:22.4]}
30... Qb6+ {[%clk 0:00:05.9]} 31. Kf4 {[%clk 0:00:22.6]} 31... Re8 {[%clk
0:00:04.2]} 32. Qf5 {[%clk 0:00:22.1]} 32... Bc8 {[%clk 0:00:03.6]} 33. Qg5
{[%clk 0:00:21.5]} 33... Qb4+ {[%clk 0:00:03.2]} 34. Be4 {[%clk 0:00:20.9]} 1-0

[Event "Early-Titled-Tuesday-Blitz-June-18-2024"]
[Site "Chess.com"]
[Date "2024.06.18"]
[Round "1"]
[White "Silent-Killer100"]
[Black "DonCiao"]
[Result "1-0"]
[WhiteElo "2566"]
[BlackElo "2090"]
[TimeControl "180+1"]
[EndTime "8:07:11 PDT"]
[Termination "Silent-Killer100 won on time"]

1. f4 {[%clk 0:03:00.2]} 1... d5 {[%clk 0:02:55.7]} 2. Nf3 {[%clk 0:03:00]} 2...
Nf6 {[%clk 0:02:55.7]} 3. g3 {[%clk 0:02:59.2]} 3... g6 {[%clk 0:02:53.9]} 4.
Bg2 {[%clk 0:02:58.8]} 4... Bg7 {[%clk 0:02:54.5]} 5. O-O {[%clk 0:02:56.3]}
5... O-O {[%clk 0:02:54.9]} 6. d3 {[%clk 0:02:56.7]} 6... a5 {[%clk 0:02:46.8]}
7. Qe1 {[%clk 0:02:53.7]} 7... Bg4 {[%clk 0:02:36]} 8. e4 {[%clk 0:02:52.3]}
8... c6 {[%clk 0:02:27.4]} 9. h3 {[%clk 0:02:43.9]} 9... Bxf3 {[%clk 0:02:26]}
10. Bxf3 {[%clk 0:02:44.8]} 10... Nbd7 {[%clk 0:02:24.8]} 11. e5 {[%clk
0:02:41.3]} 11... Ne8 {[%clk 0:02:22.7]} 12. Nc3 {[%clk 0:02:35.9]} 12... Nc7
{[%clk 0:02:20.1]} 13. Kg2 {[%clk 0:02:28.7]} 13... Ne6 {[%clk 0:02:16]} 14. Ne2
{[%clk 0:02:25.8]} 14... f6 {[%clk 0:02:11.4]} 15. exf6 {[%clk 0:02:24.4]} 15...
exf6 {[%clk 0:02:04.8]} 16. Qf2 {[%clk 0:02:09.5]} 16... f5 {[%clk 0:02:01.2]}
17. Re1 {[%clk 0:02:04]} 17... Qf6 {[%clk 0:01:54]} 18. Rb1 {[%clk 0:01:42]}
18... a4 {[%clk 0:01:51.5]} 19. Bd2 {[%clk 0:01:36.6]} 19... b5 {[%clk
0:01:35.8]} 20. Bc3 {[%clk 0:01:29.5]} 20... d4 {[%clk 0:01:35]} 21. Bd2 {[%clk
0:01:24.9]} 21... Rac8 {[%clk 0:01:33.3]} 22. Ng1 {[%clk 0:01:20.8]} 22... Nb6
{[%clk 0:01:28.5]} 23. Re2 {[%clk 0:01:20.2]} 23... Rfe8 {[%clk 0:01:06.4]} 24.
Rbe1 {[%clk 0:01:19.5]} 24... Nd5 {[%clk 0:00:59.3]} 25. Bxd5 {[%clk 0:00:56.3]}
25... cxd5 {[%clk 0:00:58.8]} 26. Bb4 {[%clk 0:00:57.2]} 26... Nc7 {[%clk
0:00:40.6]} 27. Nf3 {[%clk 0:00:54.5]} 27... Rxe2 {[%clk 0:00:37.3]} 28. Rxe2
{[%clk 0:00:55.4]} 28... Na6 {[%clk 0:00:32.2]} 29. Be7 {[%clk 0:00:55.1]} 29...
Qb6 {[%clk 0:00:23.7]} 30. Ng5 {[%clk 0:00:51]} 30... Nc7 {[%clk 0:00:19.7]} 31.
Qf3 {[%clk 0:00:47.7]} 31... h6 {[%clk 0:00:18.4]} 32. Ne6 {[%clk 0:00:38.1]}
32... Nxe6 {[%clk 0:00:17.8]} 33. Qxd5 {[%clk 0:00:38.8]} 33... Rc6 {[%clk
0:00:15.7]} 34. Bd8 {[%clk 0:00:32.7]} 34... Qa6 {[%clk 0:00:08.4]} 35. Qd7
{[%clk 0:00:33.3]} 35... Kh7 {[%clk 0:00:06.7]} 36. Bf6 {[%clk 0:00:32.4]} 36...
Qc8 {[%clk 0:00:02.5]} 37. Qf7 {[%clk 0:00:28.5]} 37... Qf8 {[%clk 0:00:01.5]}
38. Qd7 {[%clk 0:00:25.8]} 1-0

[Event "Early-Titled-Tuesday-Blitz-June-18-2024"]
[Site "Chess.com"]
[Date "2024.06.18"]
[Round "1"]
[White "MaiqMaster"]
[Black "TheBigBoss04"]
[Result "0-1"]
[WhiteElo "2462"]
[BlackElo "2805"]
[TimeControl "180+1"]
[EndTime "8:07:14 PDT"]
[Termination "TheBigBoss04 won by resignation"]

1. Nf3 {[%clk 0:03:00.9]} 1... d5 {[%clk 0:02:56.5]} 2. g3 {[%clk 0:03:00]} 2...
Nc6 {[%clk 0:02:57.1]} 3. d4 {[%clk 0:02:57.8]} 3... Bf5 {[%clk 0:02:56.1]} 4.
Bg2 {[%clk 0:02:57]} 4... h5 {[%clk 0:02:53.9]} 5. h4 {[%clk 0:02:52.5]} 5... e6
{[%clk 0:02:50.3]} 6. O-O {[%clk 0:02:51.3]} 6... Nb4 {[%clk 0:02:49.7]} 7. Na3
{[%clk 0:02:48.8]} 7... Nf6 {[%clk 0:02:43]} 8. Ne5 {[%clk 0:02:43.8]} 8... Ne4
{[%clk 0:02:35.5]} 9. c3 {[%clk 0:02:40]} 9... Na6 {[%clk 0:02:34.6]} 10. Qa4+
{[%clk 0:02:35.4]} 10... c6 {[%clk 0:02:30.5]} 11. Bf4 {[%clk 0:02:04.7]} 11...
Rc8 {[%clk 0:02:06.8]} 12. Nc2 {[%clk 0:01:48.7]} 12... f6 {[%clk 0:02:02.1]}
13. Nd3 {[%clk 0:01:42.8]} 13... Bd6 {[%clk 0:01:58.5]} 14. Bxd6 {[%clk
0:01:32.7]} 14... Qxd6 {[%clk 0:01:59.4]} 15. Ne3 {[%clk 0:01:29.9]} 15... Bg6
{[%clk 0:01:46.3]} 16. Nf4 {[%clk 0:01:26.1]} 16... Bf7 {[%clk 0:01:44.2]} 17.
Bxe4 {[%clk 0:01:23.2]} 17... dxe4 {[%clk 0:01:43.3]} 18. c4 {[%clk 0:01:17.6]}
18... Qxd4 {[%clk 0:01:24.5]} 19. Rfd1 {[%clk 0:01:13.8]} 19... Qe5 {[%clk
0:01:23.3]} 20. Rd2 {[%clk 0:01:03.9]} 20... g5 {[%clk 0:01:16.6]} 21. Nfg2
{[%clk 0:01:00.3]} 21... gxh4 {[%clk 0:01:03.3]} 22. Nxh4 {[%clk 0:01:01.2]}
22... f5 {[%clk 0:01:01.5]} 23. Neg2 {[%clk 0:00:53.2]} 23... e3 {[%clk
0:01:00.4]} 24. Nxe3 {[%clk 0:00:49]} 24... f4 {[%clk 0:01:00.4]} 25. Nf3 {[%clk
0:00:48.2]} 25... Qg7 {[%clk 0:00:57]} 26. Nf1 {[%clk 0:00:40.1]} 26... fxg3
{[%clk 0:00:56.4]} 27. fxg3 {[%clk 0:00:41]} 27... h4 {[%clk 0:00:56.8]} 28.
Rad1 {[%clk 0:00:36.1]} 28... hxg3 {[%clk 0:00:55.3]} 29. Kg2 {[%clk 0:00:35.9]}
29... Qh6 {[%clk 0:00:51.6]} 30. Nxg3 {[%clk 0:00:32.2]} 30... Rg8 {[%clk
0:00:50.1]} 31. Qb3 {[%clk 0:00:26.9]} 31... Qf4 {[%clk 0:00:47.4]} 32. Ng1
{[%clk 0:00:12.9]} 32... Nc5 {[%clk 0:00:43.3]} 33. Qf3 {[%clk 0:00:13.6]} 33...
e5 {[%clk 0:00:33.8]} 34. Kf2 {[%clk 0:00:13.1]} 34... Rxg3 {[%clk 0:00:30.6]}
35. Qxf4 {[%clk 0:00:10]} 35... exf4 {[%clk 0:00:31.5]} 36. Rd4 {[%clk 0:00:10]}
36... Ne6 {[%clk 0:00:27.7]} 37. Re4 {[%clk 0:00:09.8]} 37... Ke7 {[%clk
0:00:24.6]} 38. Nf3 {[%clk 0:00:10]} 38... Rh8 {[%clk 0:00:21.8]} 39. Nd4 {[%clk
0:00:09.5]} 39... Rh2+ {[%clk 0:00:21.3]} 40. Kf1 {[%clk 0:00:10.1]} 40... Rh1+
{[%clk 0:00:21]} 41. Kf2 {[%clk 0:00:09.9]} 41... Rxd1 {[%clk 0:00:21.7]} 42.
Nf5+ {[%clk 0:00:10.3]} 42... Kf6 {[%clk 0:00:22]} 43. Nxg3 {[%clk 0:00:10.8]}
43... fxg3+ {[%clk 0:00:22.7]} 44. Kxg3 {[%clk 0:00:11.7]} 44... Rd2 {[%clk
0:00:22.3]} 45. Kf3 {[%clk 0:00:12]} 45... Ng5+ {[%clk 0:00:22]} 0-1

[Event "Early-Titled-Tuesday-Blitz-June-18-2024"]
[Site "Chess.com"]
[Date "2024.06.18"]
[Round "1"]
[White "N18player"]
[Black "rasmussvane"]
[Result "1-0"]
[WhiteElo "2549"]
[BlackElo "2964"]
[TimeControl "180+1"]
[EndTime "8:07:16 PDT"]
[Termination "N18player won by checkmate"]

1. d4 {[%clk 0:02:59.3]} 1... d5 {[%clk 0:02:59.6]} 2. c4 {[%clk 0:02:59.3]}
2... e6 {[%clk 0:02:58.6]} 3. Nf3 {[%clk 0:02:58.3]} 3... a6 {[%clk 0:02:57.1]}
4. Bg5 {[%clk 0:02:57.3]} 4... Be7 {[%clk 0:02:57]} 5. Bxe7 {[%clk 0:02:56.1]}
5... Nxe7 {[%clk 0:02:57.1]} 6. e3 {[%clk 0:02:57]} 6... O-O {[%clk 0:02:56.9]}
7. Nc3 {[%clk 0:02:57]} 7... Nd7 {[%clk 0:02:56.1]} 8. Rc1 {[%clk 0:02:50.8]}
8... dxc4 {[%clk 0:02:32.7]} 9. Bxc4 {[%clk 0:02:50.4]} 9... c5 {[%clk
0:02:32.1]} 10. O-O {[%clk 0:02:46.5]} 10... b6 {[%clk 0:02:20.1]} 11. dxc5
{[%clk 0:02:33.2]} 11... Nxc5 {[%clk 0:02:19.9]} 12. b4 {[%clk 0:02:28.5]} 12...
Nd7 {[%clk 0:02:07.8]} 13. Ne4 {[%clk 0:02:22.8]} 13... Bb7 {[%clk 0:01:56.1]}
14. Nd6 {[%clk 0:02:23]} 14... Bxf3 {[%clk 0:01:55.6]} 15. gxf3 {[%clk
0:02:12.4]} 15... b5 {[%clk 0:01:47.7]} 16. Nb7 {[%clk 0:01:37.7]} 16... Qe8
{[%clk 0:01:35.2]} 17. Nd6 {[%clk 0:01:36]} 17... Qd8 {[%clk 0:01:18.3]} 18. Nb7
{[%clk 0:01:35.5]} 18... Qe8 {[%clk 0:01:10.8]} 19. Nd6 {[%clk 0:01:35.5]} 19...
Qb8 {[%clk 0:01:10.4]} 20. Nxb5 {[%clk 0:00:46]} 20... Ne5 {[%clk 0:01:04.8]}
21. Nd4 {[%clk 0:00:42.7]} 21... Qxb4 {[%clk 0:01:04.5]} 22. Bb3 {[%clk
0:00:39.2]} 22... Rfd8 {[%clk 0:01:00.9]} 23. f4 {[%clk 0:00:36]} 23... N5g6
{[%clk 0:00:49.3]} 24. Qf3 {[%clk 0:00:32.6]} 24... Nh4 {[%clk 0:00:29.1]} 25.
Qg4 {[%clk 0:00:20.9]} 25... Nhg6 {[%clk 0:00:16.2]} 26. Qf3 {[%clk 0:00:15.5]}
26... Rac8 {[%clk 0:00:14]} 27. Nc6 {[%clk 0:00:07.3]} 27... Nxc6 {[%clk
0:00:13.6]} 28. Rxc6 {[%clk 0:00:08.2]} 28... Nh4 {[%clk 0:00:12.9]} 29. Qh1
{[%clk 0:00:07.7]} 29... Qb5 {[%clk 0:00:06.6]} 30. Rfc1 {[%clk 0:00:07.2]}
30... Rxc6 {[%clk 0:00:05]} 31. Qxc6 {[%clk 0:00:08.1]} 31... Qh5 {[%clk
0:00:05.3]} 32. Qc7 {[%clk 0:00:04.7]} 32... Qg4+ {[%clk 0:00:05.3]} 33. Kf1
{[%clk 0:00:04.6]} 33... Qg2+ {[%clk 0:00:05.4]} 34. Ke1 {[%clk 0:00:05.1]}
34... Qf3 {[%clk 0:00:05.3]} 35. Qxd8# {[%clk 0:00:04.8]} 1-0

[Event "Early-Titled-Tuesday-Blitz-June-18-2024"]
[Site "Chess.com"]
[Date "2024.06.18"]
[Round "1"]
[White "rollercoaster29"]
[Black "ChessLover0108"]
[Result "0-1"]
[WhiteElo "2507"]
[BlackElo "2917"]
[TimeControl "180+1"]
[EndTime "8:07:19 PDT"]
[Termination "ChessLover0108 won by resignation"]

1. e4 {[%clk 0:03:00.2]} 1... c5 {[%clk 0:03:00]} 2. Nf3 {[%clk 0:03:00.2]} 2...
d6 {[%clk 0:03:00.2]} 3. d4 {[%clk 0:03:00.5]} 3... cxd4 {[%clk 0:03:00.8]} 4.
Nxd4 {[%clk 0:03:01.4]} 4... Nf6 {[%clk 0:03:01.6]} 5. Nc3 {[%clk 0:03:01.6]}
5... a6 {[%clk 0:03:02.4]} 6. f3 {[%clk 0:03:00.4]} 6... e5 {[%clk 0:03:02.4]}
7. Nb3 {[%clk 0:03:00.5]} 7... Be6 {[%clk 0:03:02.9]} 8. Be3 {[%clk 0:03:00.8]}
8... h5 {[%clk 0:02:57.1]} 9. Nd5 {[%clk 0:02:43.5]} 9... Bxd5 {[%clk
0:02:53.9]} 10. exd5 {[%clk 0:02:43]} 10... Nbd7 {[%clk 0:02:54.8]} 11. Qd2
{[%clk 0:02:36.2]} 11... g6 {[%clk 0:02:54.5]} 12. O-O-O {[%clk 0:02:34.6]}
12... Qc7 {[%clk 0:02:55.2]} 13. Kb1 {[%clk 0:02:20.2]} 13... Bg7 {[%clk
0:02:54.8]} 14. c4 {[%clk 0:02:10.2]} 14... a5 {[%clk 0:02:42.1]} 15. Nc1 {[%clk
0:01:52.1]} 15... O-O {[%clk 0:02:32.6]} 16. Bd3 {[%clk 0:01:43.4]} 16... e4
{[%clk 0:02:25.7]} 17. fxe4 {[%clk 0:01:39.1]} 17... Rfe8 {[%clk 0:02:25.2]} 18.
Qc2 {[%clk 0:01:23.3]} 18... Nc5 {[%clk 0:02:13.1]} 19. Bd4 {[%clk 0:01:10.8]}
19... Ncxe4 {[%clk 0:01:42.8]} 20. Rhe1 {[%clk 0:01:03.2]} 20... Nc5 {[%clk
0:01:36.4]} 21. Ne2 {[%clk 0:00:47.2]} 21... Ng4 {[%clk 0:01:23.5]} 22. Bxg7
{[%clk 0:00:39.9]} 22... Kxg7 {[%clk 0:01:24.4]} 23. Nf4 {[%clk 0:00:35]} 23...
Ne5 {[%clk 0:01:15.3]} 24. Bxg6 {[%clk 0:00:21.8]} 24... fxg6 {[%clk 0:01:00.1]}
25. Rxe5 {[%clk 0:00:21.3]} 25... dxe5 {[%clk 0:00:47.6]} 26. Qxg6+ {[%clk
0:00:21.3]} 26... Kh8 {[%clk 0:00:48.3]} 27. Nxh5 {[%clk 0:00:16.3]} 27... Qh7
{[%clk 0:00:39.4]} 28. Qxh7+ {[%clk 0:00:12.9]} 28... Kxh7 {[%clk 0:00:40.3]}
29. Nf6+ {[%clk 0:00:13.6]} 29... Kg6 {[%clk 0:00:41.2]} 30. Nxe8 {[%clk
0:00:14.5]} 30... Rxe8 {[%clk 0:00:41.7]} 31. Kc2 {[%clk 0:00:14.3]} 31... Rf8
{[%clk 0:00:37]} 32. Rd2 {[%clk 0:00:13.7]} 32... Rf4 {[%clk 0:00:33.5]} 33. b3
{[%clk 0:00:13.2]} 33... Kf6 {[%clk 0:00:34.2]} 34. a3 {[%clk 0:00:11.6]} 34...
a4 {[%clk 0:00:30.9]} 35. b4 {[%clk 0:00:08.8]} 35... Rxc4+ {[%clk 0:00:31.4]}
36. Kb2 {[%clk 0:00:09.1]} 36... Ne4 {[%clk 0:00:29]} 37. Re2 {[%clk 0:00:09.3]}
37... Rd4 {[%clk 0:00:28.1]} 38. g4 {[%clk 0:00:05.7]} 38... Nd6 {[%clk
0:00:28.4]} 39. Rf2+ {[%clk 0:00:05.5]} 39... Kg5 {[%clk 0:00:25.7]} 40. h3
{[%clk 0:00:05.1]} 40... e4 {[%clk 0:00:25.6]} 0-1

[Event "Early-Titled-Tuesday-Blitz-June-18-2024"]
[Site "Chess.com"]
[Date "2024.06.18"]
[Round "1"]
[White "KoshkaMatrioshka"]
[Black "carloseduar100"]
[Result "1/2-1/2"]
[WhiteElo "2598"]
[BlackElo "2259"]
[TimeControl "180+1"]
[EndTime "8:07:19 PDT"]
[Termination "Game drawn by repetition"]

1. c4 {[%clk 0:03:00.9]} 1... e6 {[%clk 0:02:59]} 2. g3 {[%clk 0:02:57.7]} 2...
d5 {[%clk 0:02:59.5]} 3. Bg2 {[%clk 0:02:58]} 3... Nf6 {[%clk 0:02:56.9]} 4. Nf3
{[%clk 0:02:58.3]} 4... a6 {[%clk 0:02:55.8]} 5. b3 {[%clk 0:02:55.3]} 5... g6
{[%clk 0:02:54.4]} 6. Bb2 {[%clk 0:02:54.8]} 6... Bg7 {[%clk 0:02:55]} 7. O-O
{[%clk 0:02:54.7]} 7... O-O {[%clk 0:02:55.5]} 8. d3 {[%clk 0:02:53.3]} 8... c6
{[%clk 0:02:56]} 9. Nbd2 {[%clk 0:02:42.8]} 9... Re8 {[%clk 0:02:50.5]} 10. Qc2
{[%clk 0:02:40.2]} 10... Nbd7 {[%clk 0:02:49.5]} 11. Ne5 {[%clk 0:02:39.5]}
11... Nxe5 {[%clk 0:02:48.7]} 12. Bxe5 {[%clk 0:02:39.2]} 12... Nd7 {[%clk
0:02:48.1]} 13. Bxg7 {[%clk 0:02:38.9]} 13... Kxg7 {[%clk 0:02:49]} 14. d4
{[%clk 0:02:25]} 14... Nf6 {[%clk 0:02:46.5]} 15. Rad1 {[%clk 0:02:22.5]} 15...
Qe7 {[%clk 0:02:34.4]} 16. e4 {[%clk 0:02:16]} 16... dxe4 {[%clk 0:02:29.1]} 17.
Nxe4 {[%clk 0:02:06.2]} 17... e5 {[%clk 0:02:28.7]} 18. Nxf6 {[%clk 0:01:56.4]}
18... Qxf6 {[%clk 0:02:26.7]} 19. d5 {[%clk 0:01:54.4]} 19... cxd5 {[%clk
0:02:26.2]} 20. Rxd5 {[%clk 0:01:12]} 20... Bf5 {[%clk 0:02:16.7]} 21. Be4
{[%clk 0:01:10.3]} 21... Bxe4 {[%clk 0:02:15.8]} 22. Qxe4 {[%clk 0:01:10.3]}
22... Qc6 {[%clk 0:02:08.4]} 23. Re1 {[%clk 0:01:04.4]} 23... f5 {[%clk
0:02:02.2]} 24. Qe3 {[%clk 0:00:55.4]} 24... e4 {[%clk 0:01:48]} 25. Qd4+ {[%clk
0:00:49.8]} 25... Kh6 {[%clk 0:01:31.2]} 26. Rd1 {[%clk 0:00:26.5]} 26... Re7
{[%clk 0:01:15.8]} 27. Qe3+ {[%clk 0:00:18.6]} 27... Kg7 {[%clk 0:01:14.8]} 28.
Qg5 {[%clk 0:00:19.3]} 28... Qf6 {[%clk 0:01:09.4]} 29. Qf4 {[%clk 0:00:17.2]}
29... Rae8 {[%clk 0:01:08.5]} 30. Qe3 {[%clk 0:00:16.5]} 30... Re6 {[%clk
0:00:42.5]} 31. h4 {[%clk 0:00:16.5]} 31... h6 {[%clk 0:00:40.4]} 32. Rd7+
{[%clk 0:00:16.2]} 32... R8e7 {[%clk 0:00:40.5]} 33. Rxe7+ {[%clk 0:00:15.9]}
33... Rxe7 {[%clk 0:00:40.9]} 34. Rd5 {[%clk 0:00:16.4]} 34... g5 {[%clk
0:00:30.8]} 35. hxg5 {[%clk 0:00:16.5]} 35... hxg5 {[%clk 0:00:31.7]} 36. Qc5
{[%clk 0:00:16]} 36... Kg6 {[%clk 0:00:27.4]} 37. Rd6 {[%clk 0:00:16.2]} 37...
Re6 {[%clk 0:00:28]} 38. Rxe6 {[%clk 0:00:14.7]} 38... Qxe6 {[%clk 0:00:28.9]}
39. b4 {[%clk 0:00:10.6]} 39... f4 {[%clk 0:00:25.9]} 40. gxf4 {[%clk
0:00:08.1]} 40... gxf4 {[%clk 0:00:26.8]} 41. Kf1 {[%clk 0:00:07.8]} 41... Qh3+
{[%clk 0:00:25.3]} 42. Ke1 {[%clk 0:00:07.5]} 42... Qc3+ {[%clk 0:00:25.6]} 43.
Kf1 {[%clk 0:00:08]} 43... Qh3+ {[%clk 0:00:25.8]} 44. Ke1 {[%clk 0:00:08.5]}
44... Qc3+ {[%clk 0:00:25.9]} 45. Kf1 {[%clk 0:00:08.5]} 45... Qh3+ {[%clk
0:00:23.7]} 1/2-1/2